bitfinex/quotes_ETHUSD_20251213
["timestamp","ask_amount","ask_price","bid_price","bid_amount"]
[1765595603907,0.37738139,3090.0,3089.9,8.48348985]
[1765595607487,1.08848139,3090.0,3089.9,5.42248085]
[1765595608483,0.83198139,3090.0,3089.9,5.42248085]
[1765595608819,0.83198139,3090.0,3088.6,3.8355]
[1765595608820,1.08848139,3090.0,3088.6,3.8355]
[1765595609019,0.6796,3089.9,3088.9,0.51]
[1765595609189,0.677,3089.9,3089.4,0.83198139]
[1765595609390,0.4893,3089.8,3089.4,0.83198139]
[1765595609591,0.2295,3089.5,3089.4,0.83198139]
[1765595610014,0.7162,3089.5,3089.4,0.83198139]
[1765595610619,0.7162,3089.5,3088.9,0.51]
[1765595610819,0.2638,3089.4,3089.2,0.58047529]
[1765595611210,0.4527,3089.3,3089.2,0.58047529]
[1765595611414,0.4527,3089.3,3089.2,0.97197315]
[1765595611739,0.7184,3089.3,3089.2,0.97197315]
[1765595617928,0.7184,3089.3,3089.2,1.55244844]
[1765595618727,0.7184,3089.3,3089.2,0.58047529]
[1765595621406,0.7184,3089.3,3089.2,3.81755932]
[1765595624223,0.4527,3089.3,3089.2,3.81755932]
[1765595625122,0.7184,3089.3,3089.2,3.81755932]
[1765595626144,0.4527,3089.3,3089.2,3.81755932]
[1765595627445,0.2657,3089.7,3089.2,4.29455932]
[1765595628344,0.51,3089.8,3089.2,4.29455932]
[1765595628518,0.9411476,3089.8,3089.2,4.29455932]
[1765595628718,0.4893,3089.7,3089.2,4.29455932]
[1765595628939,0.2295,3089.3,3089.2,3.81755932]
[1765595632548,0.4867,3089.5,3089.2,3.81755932]
[1765595633820,0.4867,3089.5,3089.2,7.05464335]
[1765595639026,0.37738139,3090.0,3089.4,0.4616]
[1765595639225,0.37738139,3090.0,3089.3,0.4858]
[1765595639226,0.37738139,3090.0,3089.9,0.4616]
[1765595639725,0.37738139,3090.0,3089.9,0.9474]
[1765595641054,0.37738139,3090.0,3089.9,4.18375069]
[1765595644159,1.09098139,3090.0,3089.9,3.23635069]
[1765595644949,0.61108139,3090.0,3089.9,3.23635069]
[1765595648960,0.37738139,3090.0,3089.9,0.4616]
[1765595649860,0.61358139,3090.0,3089.8,3.23645543]
[1765595650058,0.61358139,3090.0,3089.8,6.47291086]
[1765595650354,0.37738139,3090.0,3089.9,0.4616]
[1765595650561,0.37738139,3090.0,3089.9,1.52787529]
[1765595651058,0.37738139,3090.0,3089.9,4.76422598]
[1765595653734,0.37738139,3090.0,3089.9,4.27842598]
[1765595677293,0.61108139,3090.0,3089.9,3.81682598]
[1765595677795,0.37738139,3090.0,3089.9,3.81682598]
[1765595678094,0.37738139,3090.0,3089.9,6.64516019]
[1765595679596,0.37738139,3090.0,3089.9,7.12506019]
[1765595680294,0.37738139,3090.0,3089.9,8.09696019]
[1765595682366,0.37738139,3090.0,3089.9,5.26862598]
[1765595685772,0.37738139,3090.0,3089.9,8.09696019]
[1765595687694,0.37738139,3090.0,3089.9,29.99373219]
[1765595687895,0.37738139,3090.0,3089.9,29.14042019]
[1765595690002,0.37738139,3090.0,3089.9,29.54592419]
[1765595691005,0.37738139,3090.0,3089.9,38.50246419]
[1765595700320,0.37738139,3090.0,3089.9,8.50246419]
[1765595700492,0.37738139,3090.0,3089.9,38.50246419]
[1765595701326,0.37738139,3090.0,3089.9,8.50246419]
[1765595701629,0.37738139,3090.0,3089.9,38.50246419]
[1765595701992,0.37738139,3090.0,3089.9,41.91046419]
[1765595702200,0.37738139,3090.0,3089.9,38.50246419]
[1765595703597,0.37738139,3090.0,3089.9,29.92860019]
[1765595704628,0.37738139,3090.0,3089.9,38.50246419]
[1765595706133,0.37738139,3090.0,3089.9,38.50124382]
[1765595710938,0.37738139,3090.0,3089.9,8.50124382]
[1765595711139,0.37738139,3090.0,3089.9,38.50124382]
[1765595719360,0.001,3090.3,3090.2,0.98597929]
[1765595719504,0.001,3090.5,3090.4,36.64020697]
[1765595719705,0.001,3090.5,3090.4,37.12270697]
[1765595719910,0.001,3090.7,3090.6,30.98597929]
[1765595720131,0.001,3090.7,3090.6,28.54727413]
[1765595720338,0.001,3090.7,3090.6,28.34851097]
[1765595720510,0.2537,3090.7,3090.6,6.76971737]
[1765595720722,0.7182,3090.7,3090.6,9.64420837]
[1765595721228,0.001,3090.7,3090.6,26.31915804]
[1765595722053,0.2608,3090.7,3090.6,26.31915804]
[1765595722255,0.001,3090.7,3090.6,40.96773504]
[1765595722429,0.001,3090.7,3090.6,41.42533504]
[1765595725328,0.601,3091.3,3091.2,31.043904]
[1765595725329,1e-08,3091.3,3091.2,31.043904]
[1765595725572,0.601,3091.4,3091.3,30.0]
[1765595725779,0.601,3091.4,3091.3,33.19597929]
[1765595725930,0.601,3091.4,3091.3,31.43837929]
[1765595726131,0.601,3091.4,3091.3,32.49697929]
[1765595726367,0.601,3091.4,3091.3,38.66120697]
[1765595726731,0.001,3091.9,3091.3,38.66120697]
[1765595726732,0.001,3091.9,3091.5,30.0]
[1765595726938,0.001,3091.9,3091.5,33.85998913]
[1765595727158,0.001,3091.9,3091.5,4.31758913]
[1765595727350,0.001,3091.9,3091.5,37.55226485]
[1765595727540,0.001,3091.9,3091.5,33.99726285]
[1765595728388,0.001,3091.9,3091.5,37.55226485]
[1765595728743,0.001,3091.9,3091.5,35.66972585]
[1765595728958,0.001,3091.9,3091.5,35.34621885]
[1765595729360,0.001,3091.9,3091.5,37.55226485]
[1765595730357,0.001,3091.9,3091.5,36.31645585]
[1765595730876,0.001,3091.9,3091.5,35.99294885]
[1765595731376,0.001,3091.9,3091.5,32.37748785]
[1765595731789,0.001,3091.9,3091.5,32.11471385]
[1765595732167,0.001,3091.9,3091.5,34.76132485]
[1765595732370,0.001,3091.9,3091.5,31.35332485]
[1765595733374,0.001,3091.9,3091.5,32.95285885]
[1765595733564,0.001,3091.9,3091.5,31.92154785]
[1765595734681,0.001,3091.9,3091.5,32.23956685]
[1765595735175,0.001,3091.9,3091.5,31.91605985]
[1765595735576,0.001,3091.9,3091.5,33.02205985]
[1765595736587,0.001,3091.9,3091.5,8.15226485]
[1765595736787,0.001,3091.9,3091.5,33.65198385]
[1765595737093,0.001,3091.9,3091.5,31.98633085]
[1765595737787,0.001,3091.9,3091.5,32.93065885]
[1765595738451,0.001,3091.9,3091.5,35.75777269]
[1765595738791,0.001,3091.9,3091.5,33.34970719]
[1765595739765,0.001,3091.9,3091.5,35.48222819]
[1765595740091,0.001,3091.9,3091.5,31.68738327]
[1765595740294,0.001,3091.9,3091.5,34.51180453]
[1765595740759,0.001,3091.9,3091.5,10.97399353]
[1765595741079,0.001,3091.9,3091.5,40.97399353]
[1765595741789,0.4562,3091.6,3091.5,24.98639027]
[1765595741978,0.4562,3091.6,3091.5,25.46040827]
[1765595742897,0.4562,3091.6,3091.5,35.90522727]
[1765595743189,0.4562,3091.6,3091.5,28.22073301]
[1765595743373,0.4562,3091.6,3091.5,18.38199627]
[1765595743959,0.4562,3091.6,3091.5,19.31563627]
[1765595744995,0.4562,3091.6,3091.5,21.47829327]
[1765595745198,0.4562,3091.6,3091.5,21.15477427]
[1765595745698,0.001,3091.6,3091.5,21.60717427]
[1765595745897,0.001,3091.6,3091.5,22.06477427]
[1765595746210,0.001,3091.6,3091.5,26.52886427]
[1765595746376,0.001,3091.6,3091.5,26.07126427]
[1765595747075,0.001,3091.6,3091.5,27.28696827]
[1765595747996,0.001,3091.6,3091.5,7.69197227]
[1765595748286,0.001,3091.6,3091.5,27.93203627]
[1765595749090,0.001,3091.6,3091.5,7.69197227]
[1765595749290,0.001,3091.6,3091.5,27.97003627]
[1765595749592,0.001,3091.6,3091.5,25.46387127]
[1765595749787,0.001,3091.6,3091.5,24.42839027]
[1765595749994,0.001,3091.6,3091.5,21.89798127]
[1765595750178,0.001,3091.6,3091.5,23.99960927]
[1765595750689,0.001,3091.6,3091.5,21.89422127]
[1765595750890,0.4562,3091.6,3091.5,4.41515101]
[1765595751091,0.7415,3091.6,3091.5,7.64507627]
[1765595755502,0.4562,3091.6,3091.5,16.61086027]
[1765595756492,0.001,3091.6,3091.5,28.18690427]
[1765595757499,0.4545,3091.6,3091.5,26.26482427]
[1765595757996,0.001,3091.6,3091.5,26.75342427]
[1765595758298,0.001,3091.6,3091.5,26.26482427]
[1765595758471,0.001,3091.6,3091.5,28.35985727]
[1765595759001,0.2559,3091.6,3091.5,15.44981427]
[1765595759193,0.001,3091.6,3091.5,16.43651427]
[1765595759501,0.001,3091.6,3091.5,26.10833727]
[1765595759894,0.001,3091.6,3091.5,25.78487927]
[1765595760580,0.001,3091.6,3091.5,39.72176953]
[1765595760778,0.001,3091.6,3091.5,40.21986953]
[1765595761174,0.001,3091.6,3091.5,32.09123353]
[1765595761492,0.746,3091.6,3091.5,13.27491627]
[1765595761674,0.746,3091.6,3091.5,10.17684027]
[1765595762676,0.746,3091.6,3091.5,13.49137727]
[1765595762882,0.2559,3091.6,3091.5,12.84431927]
[1765595763085,0.746,3091.6,3091.5,10.57981927]
[1765595763601,0.746,3091.6,3091.5,14.51358027]
[1765595763801,0.746,3091.6,3091.5,11.78892327]
[1765595764107,0.746,3091.6,3091.5,10.12727227]
[1765595764330,0.746,3091.6,3091.5,7.29431401]
[1765595764604,0.746,3091.6,3091.5,8.12084901]
[1765595764807,0.746,3091.6,3091.5,4.41515101]
[1765595768318,0.746,3091.6,3091.5,3.81515101]
[1765595768614,0.746,3091.6,3091.5,4.32515101]
[1765595768990,0.746,3091.6,3091.5,7.14957227]
[1765595770816,0.746,3091.6,3091.5,29.58362747]
[1765595771016,0.2559,3091.6,3091.5,29.50305747]
[1765595771318,0.2559,3091.6,3091.5,28.06900647]
[1765595772091,0.001,3091.6,3091.5,21.90290947]
[1765595772298,0.001,3091.6,3091.5,22.40100947]
[1765595772715,0.001,3091.6,3091.5,21.90290947]
[1765595773088,0.001,3091.6,3091.5,32.62253347]
[1765595773492,0.001,3091.6,3091.5,31.44145947]
[1765595773723,0.001,3091.6,3091.5,30.44145947]
[1765595773925,0.001,3091.6,3091.5,29.73414147]
[1765595774101,0.001,3091.6,3091.5,7.89625547]
[1765595774410,0.2559,3091.6,3091.5,29.24554147]
[1765595776427,0.001,3091.6,3091.5,42.11356393]
[1765595778308,0.001,3091.6,3091.5,33.85183393]
[1765595779395,0.001,3091.6,3091.5,42.11356393]
[1765595782321,0.001,3091.6,3091.5,31.06343793]
[1765595782625,0.2142,3091.6,3091.5,20.96734047]
[1765595783528,0.2142,3091.6,3091.5,22.15045747]
[1765595784230,0.2142,3091.6,3091.5,19.81899647]
[1765595785618,0.001,3091.6,3091.5,26.01567747]
[1765595786631,0.001,3091.6,3091.5,27.64919447]
[1765595787628,0.001,3091.6,3091.5,27.65663147]
[1765595788327,0.001,3091.6,3091.5,30.48173593]
[1765595788631,0.001,3091.6,3091.5,30.47773493]
[1765595788800,0.001,3091.6,3091.5,30.97713493]
[1765595789711,0.001,3091.6,3091.5,42.10746393]
[1765595792629,0.001,3091.6,3091.5,12.10746393]
[1765595792833,0.001,3091.6,3091.5,42.10746393]
[1765595795109,0.001,3091.6,3091.5,42.20191109]
[1765595800939,0.001,3091.6,3091.5,12.20191109]
[1765595801153,0.001,3091.6,3091.5,42.20191109]
[1765595801637,0.729,3091.6,3091.5,41.22131109]
[1765595801852,0.729,3091.6,3091.5,25.80006663]
[1765595802051,0.2377,3091.6,3091.5,33.31526451]
[1765595802441,0.001,3091.6,3091.5,33.31526451]
[1765595802643,0.001,3091.6,3091.5,26.46873851]
[1765595803140,0.001,3091.6,3091.5,33.03161751]
[1765595804010,0.001,3091.6,3091.5,11.22005351]
[1765595804214,0.001,3091.6,3091.5,34.34623719]
[1765595805133,0.001,3091.6,3091.5,41.70107819]
[1765595805461,0.001,3091.6,3091.5,42.20047819]
[1765595806415,0.001,3091.6,3091.5,45.54047819]
[1765595807647,0.001,3091.6,3091.5,45.04107819]
[1765595809349,0.001,3091.6,3091.5,45.54047819]
[1765595814756,0.001,3091.6,3091.5,15.54047819]
[1765595814926,0.001,3091.6,3091.5,45.54047819]
[1765595816762,0.001,3091.6,3091.5,45.04107819]
[1765595819067,0.001,3091.6,3091.5,15.04107819]
[1765595819267,0.001,3091.6,3091.5,45.04107819]
[1765595821436,0.001,3091.6,3091.5,45.49577819]
[1765595823369,0.001,3091.6,3091.5,45.04107819]
[1765595823573,0.2363,3091.6,3091.5,44.55987819]
[1765595825573,0.2363,3091.6,3091.5,42.40976819]
[1765595825739,0.7316,3091.6,3091.5,41.11580019]
[1765595826372,0.7316,3091.6,3091.5,44.55987819]
[1765595826749,0.001,3091.6,3091.5,42.15707819]
[1765595829267,0.001,3091.6,3091.5,41.70237819]
[1765595831350,0.001,3091.6,3091.5,41.21987819]
[1765595831557,0.2363,3091.6,3091.5,41.21987819]
[1765595834774,0.7316,3091.6,3091.5,41.21987819]
[1765595835274,0.2363,3091.6,3091.5,41.21987819]
[1765595835664,0.2363,3091.6,3091.5,41.21924345]
[1765595835871,0.7316,3091.6,3091.5,31.63131345]
[1765595836580,0.7316,3091.6,3091.5,41.21924345]
[1765595840152,0.2363,3091.6,3091.5,41.21924345]
[1765595840353,0.001,3091.6,3091.5,41.21924345]
[1765595842360,0.2665,3091.6,3091.5,41.21924345]
[1765595843181,0.2665,3091.6,3091.5,11.21924345]
[1765595843370,0.2665,3091.6,3091.5,41.21924345]
[1765595848338,0.2665,3091.6,3091.5,11.21924345]
[1765595848546,0.2665,3091.6,3091.5,41.21924345]
[1765595850088,0.001,3091.6,3091.5,41.68234345]
[1765595850397,0.001,3091.6,3091.5,42.17354345]
[1765595851021,0.001,3091.9,3091.6,30.98597929]
[1765595851204,0.001,3091.9,3091.8,0.98597929]
[1765595851404,0.001,3091.9,3091.8,34.27314993]
[1765595851593,0.001,3091.9,3091.8,35.23414993]
[1765595852405,0.001,3091.9,3091.8,38.46851179]
[1765595854404,0.001,3091.9,3091.8,8.46851179]
[1765595854717,0.001,3091.9,3091.8,38.46851179]
[1765595856902,0.001,3091.9,3091.8,37.97731179]
[1765595858000,0.477,3091.9,3091.8,34.02533579]
[1765595858926,0.7093,3091.9,3091.8,34.84365479]
[1765595860097,0.7093,3091.9,3091.8,34.52016179]
[1765595860918,0.7093,3091.9,3091.8,34.52016279]
[1765595862016,0.7093,3091.9,3091.8,34.86017205]
[1765595862739,0.7093,3091.9,3091.8,34.53667905]
[1765595863032,0.7093,3091.9,3091.8,35.18366505]
[1765595863233,0.7093,3091.9,3091.8,34.86017205]
[1765595863434,0.7093,3091.9,3091.8,34.53667905]
[1765595864014,0.7093,3091.9,3091.8,7.51374105]
[1765595864201,0.477,3091.9,3091.8,34.86017205]
[1765595865253,0.477,3091.9,3091.8,34.86017305]
[1765595866116,0.477,3091.9,3091.8,35.18356605]
[1765595866616,0.477,3091.9,3091.8,34.86007305]
[1765595867102,0.477,3091.9,3091.8,34.53658005]
[1765595867245,0.477,3091.9,3091.8,34.53657905]
[1765595867743,0.477,3091.9,3091.8,31.46257405]
[1765595868109,0.7093,3091.9,3091.8,31.46257405]
[1765595868710,0.001,3091.9,3091.8,31.92567405]
[1765595869142,0.001,3091.9,3091.8,31.92520075]
[1765595869314,0.001,3091.9,3091.8,37.97636775]
[1765595870237,0.001,3091.9,3091.8,7.97636775]
[1765595870540,0.001,3091.9,3091.8,37.97636775]
[1765595871652,0.4698,3092.6,3092.0,0.98597929]
[1765595871823,0.4698,3092.6,3092.5,3.80910589]
[1765595872023,0.4698,3092.6,3092.5,4.31810589]
[1765595872224,0.7082,3092.6,3092.5,4.78790589]
[1765595872726,0.7082,3092.6,3092.5,31.08504763]
[1765595873125,0.2208,3092.7,3092.6,20.87225629]
[1765595873325,0.4876,3092.8,3092.7,30.405504]
[1765595873544,0.001,3092.9,3092.7,30.405504]
[1765595873749,0.4886,3092.9,3092.8,20.051519]
[1765595874256,0.7094,3092.9,3092.8,20.540119]
[1765595874453,0.7094,3092.9,3092.8,19.755928]
[1765595874649,0.7094,3092.9,3092.8,22.9499296]
[1765595874857,0.7094,3092.9,3092.8,26.18324568]
[1765595875156,0.2289,3092.9,3092.8,26.76372097]
[1765595875725,0.2289,3092.9,3092.8,29.61662697]
[1765595876140,0.7139,3092.9,3092.8,29.61662697]
[1765595876620,0.7139,3092.9,3092.8,21.78509197]
[1765595877256,0.7139,3092.9,3092.8,13.43656797]
[1765595877625,0.7139,3092.9,3092.8,23.36220997]
[1765595878148,0.7139,3092.9,3092.8,19.00721297]
[1765595878451,0.7139,3092.9,3092.8,11.26778597]
[1765595878658,0.8969,3092.9,3092.8,7.53102197]
[1765595878855,0.8969,3092.9,3092.8,10.21710497]
[1765595879426,0.8969,3092.9,3092.8,4.30239137]
[1765595880134,0.8969,3092.9,3092.8,9.18684737]
[1765595880135,0.4119,3092.9,3092.8,9.18684737]
[1765595880458,0.001,3092.9,3092.8,22.49216337]
[1765595880753,0.001,3092.9,3092.8,22.96976337]
[1765595881465,0.001,3092.9,3092.8,35.68259537]
[1765595885338,0.001,3092.9,3092.8,35.20499537]
[1765595885536,0.001,3092.9,3092.8,35.68259537]
[1765595886756,0.001,3092.9,3092.8,35.20499537]
[1765595887642,0.001,3093.2,3093.1,0.405504]
[1765595887841,0.001,3093.5,3093.3,0.98597929]
[1765595888143,0.001,3093.5,3093.4,27.27461876]
[1765595888344,0.001,3093.5,3093.4,28.24511722]
[1765595888671,0.2289,3093.5,3093.4,27.62670422]
[1765595888865,0.7139,3093.5,3093.4,11.67592522]
[1765595889068,0.7139,3093.5,3093.4,9.23162322]
[1765595889652,0.7139,3093.5,3093.4,11.52726817]
[1765595889849,0.7139,3093.5,3093.4,10.28046117]
[1765595890160,0.7139,3093.5,3093.4,9.68046117]
[1765595890357,0.7139,3093.5,3093.4,9.25251217]
[1765595890659,0.2289,3093.5,3093.4,12.67020917]
[1765595890860,0.2289,3093.5,3093.4,11.58320917]
[1765595891538,0.7139,3093.5,3093.4,11.58320917]
[1765595891870,0.7139,3093.5,3093.4,21.81781117]
[1765595892167,0.7139,3093.5,3093.4,18.99468457]
[1765595892343,0.7139,3093.5,3093.4,18.67133357]
[1765595892741,0.7139,3093.5,3093.4,16.66903857]
[1765595893176,0.7139,3093.5,3093.4,14.42003857]
[1765595893664,0.001,3093.5,3093.4,14.42003857]
[1765595893862,0.001,3093.5,3093.4,20.94716957]
[1765595894166,0.2289,3093.5,3093.4,20.45006957]
[1765595895870,0.2289,3093.5,3093.4,4.29763457]
[1765595896080,0.2289,3093.5,3093.4,20.45750657]
[1765595896374,0.001,3093.5,3093.4,20.95460657]
[1765595896543,0.001,3093.5,3093.4,20.45750657]
[1765595896743,0.4993,3093.5,3093.4,20.45750657]
[1765595897145,0.4993,3093.5,3093.4,20.43297957]
[1765595897571,0.4993,3093.5,3093.4,18.06936157]
[1765595897760,0.4993,3093.5,3093.4,16.80709557]
[1765595898076,0.7167,3093.5,3093.4,16.83289657]
[1765595898671,0.7167,3093.5,3093.4,16.00389657]
[1765595898975,0.7167,3093.5,3093.4,14.50874457]
[1765595899173,0.7167,3093.5,3093.4,15.10399057]
[1765595899666,0.7167,3093.5,3093.4,14.27533957]
[1765595900377,0.7167,3093.5,3093.4,18.6426918]
[1765595901172,0.7167,3093.5,3093.4,7.1187538]
[1765595901372,0.7167,3093.5,3093.4,18.6426918]
[1765595901976,0.7167,3093.5,3093.4,17.8426488]
[1765595902271,0.7167,3093.5,3093.4,18.1659998]
[1765595902574,0.7167,3093.5,3093.4,16.4018598]
[1765595902950,0.7167,3093.5,3093.4,15.3283618]
[1765595904378,0.7167,3093.5,3093.4,16.8590618]
[1765595905478,0.7167,3093.5,3093.4,10.2856858]
[1765595906274,0.7167,3093.5,3093.4,9.2472078]
[1765595908990,0.7167,3093.5,3093.4,9.15276064]
[1765595909156,0.7167,3093.5,3093.4,9.66176064]
[1765595912487,0.7167,3093.5,3093.4,4.71218741]
[1765595912781,0.7167,3093.5,3093.4,0.97049846]
[1765595912981,0.7167,3093.5,3093.4,1.55097375]
[1765595913851,10.41445335,3093.5,3092.0,2.82111923]
[1765595914059,0.6813,3092.1,3092.0,2.82111923]
[1765595914254,0.6813,3092.1,3092.0,6.05527188]
[1765595914454,0.8987,3092.1,3092.0,6.05527188]
[1765595914655,0.8987,3092.1,3092.0,7.0262415]
[1765595914857,0.8987,3092.1,3092.0,7.60671679]
[1765595915055,0.8987,3092.1,3092.0,6.63574717]
[1765595915268,0.8987,3092.1,3092.0,7.60678593]
[1765595916765,0.8987,3092.1,3092.0,4.37263328]
[1765595917283,0.8987,3092.1,3092.0,4.7856667]
[1765595917872,0.8987,3092.1,3092.0,1.55151405]
[1765595918053,0.8987,3092.1,3091.5,0.002]
[1765595918255,0.4042,3091.6,3091.5,3.74667572]
[1765595918450,0.4042,3091.6,3091.5,7.14827024]
[1765595918656,0.8993,3091.6,3091.5,7.14827024]
[1765595919293,0.8993,3091.6,3091.5,8.11942845]
[1765595921870,0.8993,3091.6,3091.5,8.12354352]
[1765595922482,0.8993,3091.6,3091.5,7.15238531]
[1765595932198,0.8993,3091.6,3091.5,1.09247529]
[1765595933566,0.8993,3091.6,3091.5,4.32715101]
[1765595934004,0.8993,3091.6,3091.5,1.09247529]
[1765595934520,0.8993,3091.6,3091.5,4.32715101]
[1765595935796,0.8993,3091.6,3091.5,3.81715101]
[1765595936101,0.8993,3091.6,3091.5,0.58247529]
[1765595936300,0.8993,3091.6,3091.5,3.81715101]
[1765595937582,0.466,3091.9,3091.6,0.58047529]
[1765595938098,0.2383,3091.7,3091.6,3.81498704]
[1765595938292,0.1953,3092.1,3091.6,9.87546538]
[1765595938602,0.1953,3092.1,3091.6,6.64089429]
[1765595938603,0.2383,3091.7,3091.6,6.64089429]
[1765595939466,0.2383,3091.7,3091.6,3.81498704]
[1765595939673,0.2383,3091.7,3091.6,6.64089429]
[1765595940069,0.702,3091.7,3091.6,6.64089429]
[1765595941399,0.702,3091.7,3091.6,3.81498704]
[1765595941597,0.702,3091.7,3091.6,0.58047529]
[1765595941979,0.702,3091.7,3091.5,0.002]
[1765595942297,0.4706,3091.6,3091.5,0.002]
[1765595946903,3.70517109,3091.6,3091.5,0.002]
[1765595965103,3.23457109,3091.6,3091.5,0.002]
[1765595965303,3.23451291,3091.7,3091.5,0.9157]
[1765595966322,3.23451291,3091.7,3091.5,0.4599]
[1765595966635,0.37445129,3091.6,3091.5,0.4599]
[1765595968633,0.1953,3092.1,3091.5,0.4599]
[1765595968837,0.51,3092.1,3091.6,0.4579]
[1765595969338,0.51,3092.1,3091.7,0.4558]
[1765595970134,7.64117778,3092.3,3091.7,0.4558]
[1765595970337,4.32126053,3092.2,3091.7,0.4558]
[1765595970527,7.55530328,3092.2,3091.7,0.4558]
[1765595970708,8.02580328,3092.2,3091.7,0.4558]
[1765595971040,7.55530328,3092.2,3091.7,0.4558]
[1765595971337,0.4705,3092.1,3091.7,0.4558]
[1765595971506,4.32126053,3092.2,3091.7,0.4558]
[1765595972337,4.79176053,3092.2,3091.7,0.4558]
[1765595972718,4.32126053,3092.2,3091.7,0.4558]
[1765595975243,4.32126053,3092.2,3092.1,0.4579]
[1765595975409,4.32126053,3092.2,3091.7,0.4558]
[1765595978339,4.32126053,3092.2,3091.7,3.6902652]
[1765595978531,3.23388423,3092.3,3092.1,0.4579]
[1765595979838,0.236,3092.2,3091.9,0.4558]
[1765595981313,0.236,3092.2,3091.6,3.28231591]
[1765595981314,3.93816916,3092.2,3091.6,3.28231591]
[1765595981830,3.93816916,3092.2,3091.7,0.4558]
[1765595982232,0.4682,3092.1,3091.7,0.4558]
[1765595983945,3.70233089,3092.1,3091.7,0.4558]
[1765595985440,3.23413089,3092.1,3091.7,0.4558]
[1765595986239,3.23394347,3092.2,3091.7,0.4558]
[1765595986443,3.9277729,3092.2,3091.7,0.4558]
[1765595986623,4.3982729,3092.2,3091.7,0.4558]
[1765595987847,3.9277729,3092.2,3091.7,0.4558]
[1765595988011,0.4705,3092.1,3091.7,0.4558]
[1765595988415,3.9277729,3092.2,3091.7,0.4558]
[1765595988616,0.71616238,3092.1,3091.7,0.4558]
[1765595988946,1.18666238,3092.1,3091.7,0.4558]
[1765595989850,0.71616238,3092.1,3091.7,3.69024656]
[1765595990016,3.70438939,3092.3,3091.7,3.69024656]
[1765595990340,3.70438939,3092.3,3091.8,0.4558]
[1765595993618,6.93827878,3092.3,3091.8,0.4558]
[1765596000655,3.70438939,3092.3,3091.8,0.4558]
[1765596001658,0.488,3092.5,3091.8,0.4558]
[1765596001876,0.488,3092.4,3091.8,1.42693621]
[1765596002346,0.488,3092.4,3091.8,0.97113621]
[1765596003071,3.23383889,3092.3,3091.8,0.97113621]
[1765596004927,0.488,3092.3,3091.8,4.70288079]
[1765596005127,3.72185294,3092.3,3091.9,0.4974]
[1765596005329,0.488,3092.3,3091.9,0.4974]
[1765596006077,4.1157932,3092.5,3091.9,0.4974]
[1765596006242,4.6037932,3092.5,3091.9,0.4974]
[1765596007878,4.6037932,3092.5,3091.9,3.73159615]
[1765596009779,4.6037932,3092.5,3091.9,0.4974]
[1765596010077,4.01750526,3092.4,3091.9,0.4974]
[1765596010780,4.50550526,3092.4,3091.9,0.4974]
[1765596013077,4.50550526,3092.4,3091.9,3.73164629]
[1765596014372,4.50550526,3092.4,3092.0,0.4974]
[1765596016576,4.50550526,3092.4,3091.8,0.97113621]
[1765596016577,0.48,3092.1,3091.8,0.97113621]
[1765596018193,0.48,3092.1,3091.8,1.46853621]
[1765596019798,0.48,3092.1,3091.8,0.97113621]
[1765596019960,0.2266,3091.9,3091.6,0.58047529]
[1765596020158,0.2266,3091.9,3091.6,1.55163036]
[1765596020489,0.2266,3091.9,3091.6,2.04903036]
[1765596021082,0.2266,3091.9,3091.5,3.74661711]
[1765596021083,0.4775,3091.7,3091.5,0.58247529]
[1765596021402,0.0019,3091.6,3091.5,0.58247529]
[1765596022160,0.0019,3091.6,3091.5,3.23667572]
[1765596022960,0.0019,3091.6,3091.5,0.002]
[1765596023891,0.1934,3091.9,3091.5,0.4583]
[1765596024091,0.58715587,3091.9,3091.5,0.9383]
[1765596024388,1.08175587,3091.9,3091.6,0.58047529]
[1765596024756,0.2119,3091.7,3091.6,0.58047529]
[1765596025894,0.2119,3091.7,3091.5,0.002]
[1765596027772,0.7036,3091.7,3091.5,0.002]
[1765596029765,0.2119,3091.7,3091.5,0.002]
[1765596033306,0.1837,3092.3,3091.6,0.4563]
[1765596033463,0.51,3092.1,3091.8,0.4563]
[1765596034107,0.51,3092.1,3091.8,0.9363]
[1765596034308,0.6783,3092.3,3091.8,0.9363]
[1765596034509,1.1883,3092.3,3091.8,0.9363]
[1765596034718,0.6937,3092.3,3091.8,0.9363]
[1765596035006,0.4946,3092.2,3091.8,0.9363]
[1765596035388,3.231,3092.8,3091.8,3.69061568]
[1765596035696,7.47145972,3092.7,3091.9,0.48]
[1765596036035,6.96145972,3092.7,3091.9,0.48]
[1765596036194,1.0046,3092.6,3091.9,0.48]
[1765596036394,0.4946,3092.6,3091.9,0.48]
[1765596036622,0.51,3092.5,3091.9,0.48]
[1765596038407,3.23362974,3092.5,3091.9,3.71418181]
[1765596038727,0.86742297,3092.4,3091.9,3.71418181]
[1765596039420,0.4946,3092.3,3091.9,3.71418181]
[1765596040625,0.37282297,3092.4,3091.9,3.71418181]
[1765596040825,0.37282297,3092.4,3091.9,3.23418181]
[1765596041028,0.86742297,3092.4,3092.0,0.48]
[1765596043146,0.86742297,3092.4,3092.0,3.71414589]
[1765596043442,0.86742297,3092.4,3092.0,0.48]
[1765596043666,0.86742297,3092.4,3092.0,3.71413963]
[1765596046854,0.86742297,3092.4,3092.0,0.48]
[1765596047051,0.37282297,3092.4,3091.9,4.20536307]
[1765596047269,0.4946,3092.3,3091.9,4.20536307]
[1765596047463,0.4946,3092.3,3091.9,4.68536307]
[1765596048160,0.4946,3092.3,3091.9,1.45114878]
[1765596048659,0.4946,3092.3,3091.9,4.68540481]
[1765596049560,0.4946,3092.3,3091.9,1.45114878]
[1765596049766,3.72845146,3092.3,3091.9,1.45114878]
[1765596050060,0.4946,3092.3,3091.9,1.45114878]
[1765596050265,0.4946,3092.3,3091.9,4.68540415]
[1765596050641,0.37282297,3092.4,3092.0,0.48]
[1765596052669,0.83002297,3092.4,3092.0,0.48]
[1765596055070,0.83002297,3092.4,3092.0,3.71413824]
[1765596055772,0.83002297,3092.4,3092.0,0.48]